bitfinex-derivatives/quotes_BTCF0:USTF0_20251217
["timestamp","ask_amount","ask_price","bid_price","bid_amount"]
[1766005691251,0.3608,86016.0,86003.0,0.3724311]
[1766005692251,0.3608,86016.0,86007.0,0.0116306]
[1766005692851,0.3608,86016.0,86009.0,0.0116304]
[1766005693053,0.3608,86016.0,86003.0,0.3608]
[1766005693054,0.3608,86016.0,86006.0,0.0116307]
[1766005693641,0.3608,86016.0,86003.0,0.3618]
[1766005693642,0.3608,86016.0,86003.0,0.3734311]
[1766005693847,0.3608,86016.0,86003.0,0.3608]
[1766005694047,0.0116299,86013.0,86001.0,0.38124]
[1766005694243,0.3608,86005.0,85993.0,0.0116324]
[1766005694655,0.3608,86005.0,85995.0,0.0116322]
[1766005694948,0.3608,86005.0,85988.0,0.58094311]
[1766005696052,0.3608,86005.0,85997.0,0.0116319]
[1766005698450,0.3608,85998.0,85988.0,0.58094311]
[1766005698650,0.3608,85998.0,85994.0,0.0116323]
[1766005700057,0.3608,86005.0,85997.0,0.3608]
[1766005700357,0.3608,86005.0,85997.0,0.372432]
[1766005701051,0.0001744,86018.0,85999.0,0.0116317]
[1766005701257,0.0001744,86018.0,86001.0,0.0116313]
[1766005702458,0.0001744,86018.0,86002.0,0.0116312]
[1766005702860,0.0001744,86018.0,85999.0,0.0116316]
[1766005703051,0.0001744,86018.0,85999.0,0.0126316]
[1766005703354,0.0001744,86018.0,85999.0,0.001]
[1766005703554,0.0116299,86013.0,85997.0,0.3608]
[1766005703959,0.3724299,86013.0,85997.0,0.3608]
[1766005704155,0.3608,85998.0,85990.0,0.0116329]
[1766005705754,0.3608,85998.0,85987.0,0.3724332]
[1766005706465,0.3608,85998.0,85990.0,0.001]
[1766005706762,0.3608,85991.0,85990.0,0.001]
[1766005706961,0.3608,85991.0,85978.0,0.03076065]
[1766005706962,0.36090311,85991.0,85978.0,0.00232619]
[1766005707149,0.3608,85981.0,85978.0,0.00232619]
[1766005708155,0.3608,85981.0,85978.0,0.00332619]
[1766005708756,0.3608,85981.0,85974.0,0.3608]
[1766005709060,0.3608,85981.0,85970.0,1.4659556]
[1766005709857,0.3608,85981.0,85972.0,0.0116353]
[1766005710257,0.3608,85981.0,85974.0,0.011635]
[1766005710966,0.3608,85981.0,85971.0,0.0116354]
[1766005711768,0.3608,85981.0,85973.0,0.0116352]
[1766005717863,0.3608,85981.0,85970.0,0.18463824]
[1766005718256,0.3608,85981.0,85975.0,0.011635]
[1766005719672,0.3608,85981.0,85976.0,0.0116347]
[1766005720069,0.3608,85981.0,85970.0,0.18463824]
[1766005720261,0.3608,85981.0,85973.0,0.0116351]
[1766005722470,0.3608,85981.0,85974.0,0.011635]
[1766005723576,0.3608,85981.0,85975.0,0.0116348]
[1766005723877,0.36090311,85991.0,85981.0,0.011634]
[1766005724078,0.36090311,85991.0,85980.0,0.18463824]
[1766005724265,0.36090311,85991.0,85979.0,0.3724344]
[1766005724973,0.36090311,85991.0,85980.0,0.0116342]
[1766005725174,0.36090311,85991.0,85979.0,0.3608]
[1766005733683,0.36090311,85991.0,85979.0,0.3724343]
[1766005734077,0.36090311,85991.0,85979.0,0.3608]
[1766005737079,0.00010311,85991.0,85979.0,0.3608]
[1766005737478,0.00010311,85991.0,85980.0,0.0116343]
[1766005737677,0.00010311,85991.0,85981.0,0.011634]
[1766005739775,0.00010311,85991.0,85982.0,0.0116339]
[1766005739971,0.00010311,85991.0,85988.0,0.3608]
[1766005740281,1e-07,85999.0,85996.0,0.0116321]
[1766005740475,1e-07,85999.0,85995.0,0.3608]
[1766005742383,1e-07,85999.0,85989.0,0.19627124]
[1766005742581,1e-07,85999.0,85997.0,0.3608]
[1766005745793,1e-07,85999.0,85997.0,0.372432]
[1766005746687,0.3724284,86024.0,85997.0,0.3608]
[1766005746879,0.18463824,86020.0,86000.0,0.18463824]
[1766005747280,0.18463824,86020.0,86005.0,0.3608]
[1766005747587,0.0001744,86020.0,86005.0,0.3724309]
[1766005747785,0.0001744,86020.0,86008.0,0.18463824]
[1766005748484,0.0001744,86020.0,86009.0,0.0116302]
[1766005748674,0.00332511,86018.0,86009.0,0.0116302]
[1766005749079,0.00232511,86018.0,86009.0,0.0116302]
[1766005749678,0.00232511,86018.0,86008.0,0.0116305]
[1766005749879,0.00232511,86018.0,86007.0,0.0116306]
[1766005750682,0.00332511,86018.0,86005.0,0.3608]
[1766005750983,0.00332511,86018.0,86005.0,0.3724308]
[1766005751291,0.00232511,86018.0,86005.0,0.3724308]
[1766005752388,0.00232511,86018.0,86005.0,0.3608]
[1766005753895,0.00332511,86018.0,86005.0,0.3608]
[1766005755896,0.3608,86006.0,85995.0,0.38168]
[1766005756494,0.3608,85997.0,85995.0,0.38168]
[1766005757299,0.3608,86013.0,85999.0,0.0116316]
[1766005757488,0.3608,86013.0,85998.0,0.0116318]
[1766005757685,0.3608,86013.0,85996.0,0.3608]
[1766005757893,0.3608,86013.0,85997.0,0.011632]
[1766005759090,0.00232511,86018.0,86009.0,0.3608]
[1766005760200,0.3608,86014.0,85997.0,0.011632]
[1766005760387,0.3608,86014.0,85999.0,0.0116317]
[1766005760592,0.3608,86016.0,85996.0,0.372432]
[1766005762805,0.3608,86016.0,85996.0,0.3608]
[1766005762995,0.3608,85997.0,85988.0,0.3609744]
[1766005763194,0.3608,85997.0,85988.0,0.0001744]
[1766005763396,0.3608,85989.0,85988.0,0.0001744]
[1766005768007,0.0001744,86001.0,85988.0,0.0118076]
[1766005768192,0.0001744,86001.0,85988.0,0.0001744]
[1766005775509,0.18463824,86000.0,85988.0,0.0001744]
[1766005776700,0.0001744,86001.0,85988.0,0.0001744]
[1766005779312,0.0001744,86001.0,85988.0,0.0118075]
[1766005779607,0.3608,86004.0,85988.0,0.0001744]
[1766005779802,0.3608,86027.0,86004.0,0.011631]
[1766005779996,0.3608,86027.0,86013.0,0.3608]
[1766005780606,0.0001744,86024.0,86013.0,0.3608]
[1766005780912,0.0116286,86022.0,86013.0,0.3608]
[1766005781107,0.0001744,86024.0,86013.0,0.3608]
[1766005782126,0.00332511,86018.0,86013.0,0.3608]
[1766005783715,0.3608,86014.0,86007.0,0.0001744]
[1766005784913,0.3618,86014.0,86007.0,0.0001744]
[1766005789317,0.0116298,86013.0,86007.0,0.0001744]
[1766005790619,0.0116306,86008.0,85992.0,0.05551514]
[1766005790824,0.3608,86004.0,85992.0,0.05551514]
[1766005792422,0.3608,86004.0,85990.0,0.3608]
[1766005795019,0.3608,86006.0,85990.0,0.3608]
[1766005795819,0.3608,86006.0,85991.0,0.0116328]
[1766005797024,0.0001744,86007.0,85997.0,0.3608]
[1766005797920,0.3608,86013.0,85997.0,0.54530205]
[1766005798120,0.3608,86013.0,85997.0,0.3608]
[1766005798424,0.3608,86013.0,85997.0,0.3724319]
[1766005799215,0.3608,86013.0,85997.0,0.3608]
[1766005800416,0.3608,86013.0,85997.0,0.3618]
[1766005801126,0.3608,86013.0,85997.0,0.3608]
[1766005801316,0.3608,86013.0,85989.0,0.0001744]
[1766005801317,0.3608,86006.0,85989.0,0.3609744]
[1766005802229,0.3608,86006.0,85990.0,0.0116329]
[1766005802725,0.3608,86006.0,85989.0,0.3609744]
[1766005802927,0.3608,86006.0,85989.0,0.3726074]
[1766005803631,0.3608,86006.0,85989.0,0.3609744]
[1766005804431,0.3608,86006.0,85989.0,0.3619744]
[1766005804832,0.3608,86006.0,85989.0,0.3609744]
[1766005805033,0.3608,86006.0,85989.0,0.3619744]
[1766005805932,0.3608,85992.0,85967.0,0.40263225]
[1766005806232,0.3608,85992.0,85974.0,0.39132]
[1766005806431,0.3608,85992.0,85980.0,0.3608]
[1766005807437,0.3608,85992.0,85980.0,0.3618]
[1766005810521,0.3608,85992.0,85983.0,0.0116338]
[1766005810727,0.3608,85992.0,85980.0,0.3734342]
[1766005810936,0.3608,85992.0,85982.0,0.0116339]
[1766005811129,0.0001744,85995.0,85991.0,0.3608]
[1766005812134,0.3608,86015.0,85994.0,0.3608]
[1766005812339,0.3608,86015.0,86005.0,0.3608]
[1766005813739,0.3618,86015.0,86005.0,0.3608]
[1766005814328,0.3618,86015.0,86001.0,0.0001744]
[1766005814532,0.3608,86007.0,86001.0,0.0001744]
[1766005816243,0.3618,86007.0,86001.0,0.0001744]
[1766005816441,0.3608,86015.0,86006.0,0.0116307]
[1766005816642,0.3608,86035.0,86014.0,0.3608]
[1766005816846,0.0116268,86036.0,86029.0,0.3608]
[1766005817339,0.0116267,86037.0,86029.0,0.3608]
[1766005817733,0.001,86035.0,86029.0,0.3608]
[1766005818146,0.0116272,86033.0,86014.0,0.3608]
[1766005818944,0.0116278,86028.0,86014.0,0.3608]
[1766005819247,0.0116274,86032.0,86014.0,0.3608]
[1766005819431,0.0116276,86030.0,86014.0,0.3608]
[1766005822041,0.0116276,86030.0,86014.0,0.3724295]
[1766005822042,0.001,86030.0,86014.0,0.3724295]
[1766005822739,0.001,86030.0,86014.0,0.3608]
[1766005822939,0.0116277,86029.0,86014.0,0.3608]
[1766005824648,0.0116273,86032.0,86014.0,0.3608]
[1766005826548,0.0116273,86032.0,86019.0,0.3608]
[1766005826749,0.0116277,86029.0,86019.0,0.3608]
[1766005827551,0.011628,86027.0,86019.0,0.3608]
[1766005827945,0.0116283,86025.0,86019.0,0.3608]
[1766005828545,0.0116291,86019.0,86012.0,0.0001744]
[1766005828738,0.3608,86013.0,86012.0,1e-07]
[1766005829049,0.3608,86013.0,85998.0,0.3608]
[1766005829450,0.3724299,86013.0,85998.0,0.3608]
[1766005829647,0.3608,86013.0,85998.0,0.3608]
[1766005829848,0.0116306,86008.0,85998.0,0.3608]
[1766005830551,0.0001744,86014.0,85985.0,0.0290632]
[1766005830552,0.0116319,85998.0,85985.0,0.0290632]
[1766005830851,0.3608,85986.0,85980.0,0.0116343]
[1766005831051,0.3608,85999.0,85982.0,0.3608]
[1766005831655,0.3609744,85999.0,85982.0,0.3608]
[1766005832755,0.3609744,85999.0,85982.0,0.3628]
[1766005834351,0.0116315,86001.0,85991.0,0.3608]
[1766005837641,0.1962268,86001.0,85991.0,0.3608]
[1766005838757,0.0116318,85999.0,85991.0,0.3608]
[1766005840053,0.1845953,86001.0,85991.0,0.3608]
[1766005843849,0.0116316,86000.0,85991.0,0.3608]
[1766005844048,0.011632,85998.0,85991.0,0.3618]
[1766005844458,0.011632,85998.0,85991.0,0.3608]
[1766005844659,0.3608,85993.0,85987.0,0.0001744]
[1766005845761,0.3608,85993.0,85987.0,0.0011744]
[1766005853070,0.3608,86004.0,85987.0,0.3619744]
[1766005853273,0.0001744,86005.0,85994.0,0.3608]
[1766005859776,0.011631,86004.0,85994.0,0.3608]
[1766005860182,0.0116314,86002.0,85994.0,0.3608]
[1766005860384,0.0116319,85998.0,85987.0,0.3609744]
[1766005860571,0.54541069,86000.0,85987.0,0.3609744]
[1766005861486,0.54541069,86000.0,85987.0,0.3619744]
[1766005862881,0.54541069,86000.0,85987.0,0.3609744]
[1766005863078,0.0116317,85999.0,85987.0,0.3609744]
[1766005864285,0.011632,85997.0,85987.0,0.3609744]
[1766005866084,0.013632,85997.0,85987.0,0.3609744]
[1766005866291,0.002,85997.0,85987.0,0.3609744]
[1766005868285,0.0001744,86005.0,85987.0,0.3609744]
[1766005868692,0.0118053,86005.0,85987.0,0.3609744]
[1766005869094,0.001,85997.0,85987.0,0.3609744]
[1766005869288,0.001,85997.0,85994.0,0.3608]
[1766005869588,0.0118053,86005.0,85994.0,0.3608]
[1766005869789,0.0128053,86005.0,85994.0,0.3608]
[1766005870191,0.0118053,86005.0,85994.0,0.3608]
[1766005870394,0.001,85997.0,85994.0,0.3608]
[1766005870787,0.19513,85997.0,85987.0,0.0001744]
[1766005870994,0.0116314,86002.0,85988.0,0.3608]
[1766005871297,0.18461069,86000.0,85988.0,0.3608]
[1766005872592,0.18561069,86000.0,85988.0,0.3608]
[1766005874596,0.001,86000.0,85988.0,0.3608]
[1766005874796,0.18561069,86000.0,85988.0,0.3608]
[1766005877100,0.19724239,86000.0,85988.0,0.3608]
[1766005879306,0.19624239,86000.0,85988.0,0.3608]
[1766005879494,0.19624239,86000.0,85988.0,0.3618]
[1766005879906,0.19624239,86000.0,85988.0,0.3608]
[1766005880206,0.19624239,86000.0,85988.0,0.3618]
[1766005882005,0.19624239,86000.0,85988.0,0.3608]
[1766005884507,0.0116317,86000.0,85988.0,0.3608]
[1766005884711,0.19624239,86000.0,85988.0,0.3608]
[1766005884901,0.0116319,85998.0,85988.0,0.3608]
[1766005885107,0.0116321,85996.0,85988.0,0.3608]
[1766005885715,0.0116324,85994.0,85988.0,0.3608]
[1766005885913,0.3608,85991.0,85987.0,0.0001744]
[1766005886296,0.3608,85991.0,85978.0,0.36312619]
[1766005886501,0.0116333,85988.0,85978.0,0.00232619]
[1766005887011,0.18461069,85990.0,85978.0,0.00232619]
[1766005888400,0.18461069,85990.0,85978.0,0.00332619]
[1766005889706,0.19624369,85990.0,85978.0,0.00332619]
[1766005890206,0.18461069,85990.0,85978.0,0.00332619]
[1766005891302,0.3608,86004.0,85983.0,0.3608]
[1766005891502,0.0116323,85995.0,85983.0,0.3608]
[1766005891702,0.18461069,85993.0,85983.0,0.3608]
[1766005892909,0.0116328,85991.0,85983.0,0.3608]
[1766005893918,0.0116325,85994.0,85983.0,0.3608]
[1766005894603,0.3608,85997.0,85983.0,0.3608]
[1766005894810,0.3724321,85997.0,85983.0,0.3608]
[1766005897302,0.3724321,85997.0,85983.0,0.3618]
[1766005897709,0.3608,85997.0,85983.0,0.3618]
[1766005898017,0.3608,85997.0,85983.0,0.3608]
[1766005900117,0.3608,85997.0,85983.0,0.3618]
[1766005900617,0.3608,85997.0,85983.0,0.3608]
[1766005903019,0.0118053,86005.0,85996.0,0.3608]
[1766005903617,0.0116312,86003.0,85996.0,0.3608]
[1766005903818,0.0116314,86002.0,85996.0,0.3608]
[1766005904221,0.0116316,86000.0,85984.0,0.0116337]
[1766005906619,0.0116316,86000.0,85984.0,0.0126337]
[1766005907019,0.3608,86003.0,85985.0,0.0116335]
[1766005907210,0.3724312,86003.0,85990.0,0.3608]
[1766005907413,0.3608,86003.0,85990.0,0.3608]
[1766005908524,0.0116293,86017.0,86002.0,0.3608]
[1766005908723,0.3608,86022.0,86002.0,0.3608]
[1766005908724,0.0116295,86016.0,86002.0,0.3608]
[1766005909024,0.0116292,86018.0,86002.0,0.3608]
[1766005909811,0.0001744,86019.0,86012.0,0.3608]
[1766005911416,0.0011744,86019.0,86012.0,0.3608]
[1766005911822,0.0001744,86019.0,86012.0,0.3608]
[1766005912023,0.0011744,86019.0,86012.0,0.3608]
[1766005913423,0.0011744,86019.0,86002.0,0.3608]
[1766005914019,0.0116297,86014.0,86002.0,0.3608]
[1766005914530,0.0116294,86017.0,86002.0,0.3618]
[1766005914716,0.0116295,86015.0,86002.0,0.3618]
[1766005915122,0.0116295,86015.0,86002.0,0.3608]
[1766005916518,0.0001744,86019.0,86002.0,0.3608]
[1766005917532,0.0118035,86019.0,86004.0,0.011631]
[1766005917732,0.0001744,86019.0,86004.0,0.011631]
[1766005918527,0.0001744,86019.0,86002.0,0.3608]
[1766005918932,0.0001744,86019.0,86003.0,0.0116312]
[1766005919432,0.0116292,86018.0,86002.0,0.3608]
[1766005920338,0.0116295,86016.0,86002.0,0.3608]
[1766005921337,0.0118035,86019.0,86002.0,0.3608]
[1766005921836,0.0116293,86017.0,86002.0,0.3608]
[1766005923350,0.0001744,86019.0,86002.0,0.3608]
[1766005924050,0.0118034,86019.0,86002.0,0.3608]
[1766005924350,0.0116296,86015.0,86002.0,0.3608]
[1766005924744,0.0116293,86018.0,86002.0,0.3608]
[1766005925141,0.0116294,86016.0,86002.0,0.3608]
[1766005925353,0.0118035,86019.0,86009.0,0.3608]
[1766005926849,0.0128035,86019.0,86009.0,0.3608]
[1766005927547,0.0011744,86019.0,86009.0,0.3608]
[1766005927749,4.4e-06,86019.0,86011.0,0.01163]
[1766005928052,4.4e-06,86019.0,86009.0,0.3608]
[1766005928949,0.001,86019.0,86009.0,0.3608]
[1766005929257,0.0116291,86018.0,86009.0,0.3608]
[1766005930144,0.0116294,86016.0,86009.0,0.3608]
[1766005930455,0.3608,86021.0,86009.0,0.3608]
[1766005930641,0.0116304,86009.0,86001.0,0.0001744]
[1766005930844,0.3608,86003.0,86001.0,0.0001744]
[1766005931552,0.3608,86003.0,85986.0,0.3608]
[1766005931750,0.3608,86003.0,85978.0,0.00232619]
[1766005931751,0.3608,85994.0,85978.0,0.00232619]
[1766005931948,0.3724325,85994.0,85978.0,0.00232619]
[1766005932553,0.3608,85994.0,85984.0,0.3608]
[1766005934048,0.0001744,85995.0,85993.0,0.3608]
[1766005934256,4.4e-06,85995.0,85993.0,0.3608]
[1766005934444,4.4e-06,85995.0,85993.0,0.3724324]
[1766005934754,0.0116287,86021.0,85993.0,0.3724324]
[1766005934755,0.05436,86030.0,86009.0,0.0116302]
[1766005934955,0.05436,86030.0,86022.0,0.3608]
[1766005935142,0.3608,86038.0,86022.0,0.3608]
[1766005935143,0.01197481,86035.0,86022.0,0.3608]
[1766005935339,0.3608,86038.0,86022.0,0.3608]
[1766005935748,0.45291725,86038.0,86022.0,0.3608]
[1766005936245,0.001,86035.0,86022.0,0.3608]
[1766005936653,0.46454375,86038.0,86022.0,0.3608]
[1766005936856,0.47657041,86038.0,86022.0,0.3608]
[1766005937352,0.02365316,86038.0,86029.0,0.3608]
[1766005938848,0.02465316,86038.0,86029.0,0.3608]
[1766005940253,0.01302666,86038.0,86029.0,0.3608]
[1766005940450,0.001,86038.0,86031.0,0.0116273]
[1766005940651,0.01394773,86058.0,86042.0,0.0116258]
[1766005940954,0.37257036,86056.0,86048.0,0.3608]
[1766005941655,0.38419436,86056.0,86048.0,0.3608]
[1766005941955,0.0116243,86054.0,86048.0,0.3608]
[1766005942440,0.0116246,86052.0,86043.0,0.0001744]
[1766005943249,0.001,86054.0,86043.0,0.0001744]
[1766005943759,0.0116244,86053.0,86043.0,0.0001744]
[1766005944953,0.0116245,86052.0,86043.0,0.0001744]
[1766005946751,0.3724242,86055.0,86043.0,0.0001744]
[1766005948163,0.3608,86055.0,86046.0,0.3608]
[1766005950266,0.0116243,86054.0,86046.0,0.3608]
[1766005951465,0.3608,86055.0,86046.0,0.3608]
[1766005954258,0.3608,86055.0,86043.0,0.0001744]
[1766005955862,0.0116243,86054.0,86043.0,0.0001744]
[1766005957269,4.03e-06,86058.0,86053.0,0.3608]
[1766005957468,0.3608,86071.0,86054.0,0.0116243]
[1766005957773,0.3608,86065.0,86052.0,0.3608]
[1766005958071,0.3608,86055.0,86043.0,0.0011744]
[1766005958860,0.3608,86055.0,86043.0,0.0001744]
[1766005959472,0.3608,86055.0,86043.0,0.0118001]
[1766005959661,0.3608,86055.0,86043.0,0.0128001]
[1766005959965,4.29e-06,86058.0,86053.0,0.3608]
[1766005961671,0.00100429,86058.0,86053.0,0.3608]
[1766005962273,4.29e-06,86058.0,86054.0,0.0116243]
[1766005962769,4.29e-06,86058.0,86056.0,0.0116239]
[1766005964372,1.07767745,86080.0,86058.0,0.0116236]
[1766005964673,1.07767745,86080.0,86062.0,0.3608]
[1766005965369,0.54527094,86080.0,86062.0,0.36097429]
[1766005965564,0.36097429,86080.0,86065.0,0.0116227]
[1766005965774,0.00017429,86080.0,86076.0,0.3608]
[1766005965974,4.29e-06,86080.0,86076.0,0.3608]
[1766005966269,0.3608,86091.0,86076.0,0.3608]
[1766005966475,0.3608,86091.0,86079.0,0.3608]
[1766005967071,0.3608,86099.0,86080.0,0.18429665]
[1766005967275,0.3724171,86108.0,86089.0,0.3608]
[1766005967461,0.00243468,86098.0,86089.0,0.3608]
[1766005968271,4.68e-06,86098.0,86089.0,0.3608]
[1766005968972,4.68e-06,86098.0,86092.0,0.0116191]
[1766005969169,0.3728734,86108.0,86097.0,0.3608]
[1766005969978,0.27889057,86120.0,86097.0,0.3608]
[1766005970166,0.0116162,86114.0,86098.0,0.00017429]
[1766005970368,0.0116162,86114.0,86100.0,0.18429665]
[1766005970887,0.0116162,86114.0,86098.0,0.00017429]
[1766005971776,0.0126162,86114.0,86098.0,0.00017429]
[1766005972377,0.0116162,86114.0,86098.0,0.00017429]
[1766005973873,0.0116168,86110.0,86098.0,0.00117429]
[1766005974674,0.0116176,86104.0,86098.0,0.00117429]
[1766005974879,0.3608,86109.0,86098.0,0.00017429]
[1766005974880,0.0116172,86107.0,86098.0,0.00017429]
[1766005975068,0.0116172,86107.0,86098.0,0.00117429]
[1766005975377,0.0116174,86105.0,86098.0,0.00117429]
[1766005975574,0.3608,86109.0,86097.0,0.3608]
[1766005975575,0.0116179,86102.0,86097.0,0.3608]
[1766005975968,0.3608,86098.0,86089.0,0.68408]
[1766005976168,0.3724184,86098.0,86089.0,0.68408]
[1766005976371,0.3608,86091.0,86086.0,0.72748]
[1766005976978,0.00017429,86097.0,86086.0,0.7390999]
[1766005977272,0.00017429,86097.0,86086.0,0.72748]
[1766005977667,0.00017429,86097.0,86086.0,0.72848]
[1766005978069,0.00017429,86097.0,86086.0,0.72748]
[1766005978268,0.00017429,86097.0,86086.0,0.001]
[1766005979568,0.01179279,86097.0,86086.0,0.001]
[1766005979770,0.3608,86091.0,86086.0,0.001]
[1766005980377,0.3608,86091.0,86081.0,0.0116206]
[1766005981478,0.3608,86091.0,86081.0,0.0126206]
[1766005982074,0.3608,86091.0,86081.0,0.001]
[1766005982482,0.00017429,86097.0,86088.0,0.3608]
[1766005984084,0.3608,86105.0,86088.0,0.3608]
[1766005984584,0.3608,86105.0,86091.0,0.0116191]
[1766005984884,0.3608,86105.0,86093.0,0.011619]
[1766005985484,0.3608,86105.0,86090.0,0.19591605]
[1766005986378,0.3724175,86105.0,86090.0,0.18429665]
[1766005986583,0.3608,86105.0,86090.0,0.18429665]
[1766005986782,0.3608,86105.0,86095.0,0.3608]
[1766005989976,0.0116175,86104.0,86095.0,0.3608]
[1766005990176,0.3608,86105.0,86095.0,0.3608]
[1766005991989,0.0116167,86110.0,86095.0,0.3608]
[1766005993185,0.0116167,86110.0,86095.0,0.3618]
[1766005993685,0.3608,86112.0,86095.0,0.3618]
[1766005994078,0.0116171,86108.0,86095.0,0.3618]
[1766005994382,0.0116184,86098.0,86088.0,0.3608]
[1766005994576,0.18413359,86100.0,86088.0,0.3608]
[1766005994789,0.3608,86094.0,86080.0,0.18430788]
[1766005995088,0.011619,86093.0,86080.0,0.00017429]
[1766005995289,0.0116197,86088.0,86080.0,0.00017429]
[1766005995879,0.3608,86084.0,86080.0,0.00017429]
[1766005996083,0.3608,86084.0,86080.0,0.001]
[1766005996677,0.3608,86084.0,86071.0,0.3608]
[1766005997085,0.3728085,86084.0,86071.0,0.3608]
[1766005997285,0.3738085,86084.0,86071.0,0.3608]
[1766005997675,0.3618,86084.0,86071.0,0.3608]
[1766005998286,0.0116226,86067.0,86062.0,0.02900814]
[1766005998588,0.3608,86063.0,86050.0,0.18413359]
[1766005998979,0.25,86063.0,86050.0,0.18413359]
[1766005999190,0.25,86063.0,86052.0,0.00017429]
[1766005999390,0.25,86063.0,86062.0,0.001]
[1766005999885,0.25,86063.0,86053.0,0.0116243]
[1766006000894,0.25,86063.0,86052.0,0.00017429]
[1766006002093,0.25,86063.0,86059.0,0.001]
[1766006002395,0.25,86063.0,86052.0,0.00017429]
[1766006002580,0.3608,86053.0,86052.0,0.00017429]
[1766006008493,0.3608,86053.0,86047.0,3.17e-06]
[1766006008795,0.7216,86053.0,86047.0,3.17e-06]
[1766006009489,0.7226,86053.0,86047.0,3.17e-06]
[1766006010993,0.7216,86053.0,86047.0,3.17e-06]
[1766006011199,0.7226,86053.0,86047.0,3.17e-06]
[1766006011588,0.7216,86053.0,86047.0,3.17e-06]
[1766006012291,0.7226,86053.0,86047.0,3.17e-06]
[1766006012696,0.7216,86053.0,86047.0,3.17e-06]
[1766006013002,0.7226,86053.0,86047.0,3.17e-06]
[1766006013496,0.0116248,86050.0,86032.0,0.0116272]
[1766006013698,0.3608,86039.0,86032.0,0.0116272]
[1766006015703,0.3608,86039.0,86030.0,0.18413359]
[1766006016203,0.00017429,86044.0,86037.0,0.0116265]
[1766006016401,0.00017429,86044.0,86039.0,0.0116263]
[1766006016601,0.3608,86053.0,86037.0,0.3608]
[1766006016902,0.3608,86053.0,86044.0,0.0116255]
[1766006017094,0.3608,86053.0,86040.0,0.18413359]
[1766006017498,0.3608,86053.0,86046.0,0.0116252]
[1766006017901,0.00017429,86055.0,86053.0,0.0116244]
[1766006018097,0.0116216,86074.0,86055.0,0.0116241]
[1766006018298,0.3608,86066.0,86055.0,0.0116241]
[1766006018701,0.3608,86066.0,86053.0,0.0116243]
[1766006019607,0.3608,86066.0,86052.0,0.3608]
[1766006020602,0.3608,86066.0,86052.0,0.3724245]
[1766006020803,0.3608,86066.0,86052.0,0.3608]
[1766006021493,0.3608,86066.0,86052.0,0.3724245]
[1766006021697,0.00017429,86068.0,86061.0,0.3608]
[1766006025408,0.3608,86079.0,86065.0,0.0116227]
[1766006026008,0.3608,86079.0,86069.0,0.3608]
[1766006027109,0.36097429,86083.0,86069.0,0.3608]
[1766006027307,0.36097429,86083.0,86069.0,0.3724222]
[1766006028011,0.36097429,86083.0,86069.0,0.3734222]
[1766006028404,0.36097429,86083.0,86069.0,0.3724222]
[1766006028707,0.36097429,86083.0,86069.0,0.3734222]
[1766006031702,0.3608,86097.0,86082.0,0.3608]
[1766006032014,0.00232295,86098.0,86089.0,0.3608]
[1766006032310,0.00232295,86098.0,86097.0,0.3608]
[1766006032712,0.00232295,86098.0,86096.0,0.3608]
[1766006033503,0.00432295,86098.0,86089.0,0.3608]
[1766006034004,0.00232295,86098.0,86088.0,0.00017429]
[1766006034198,0.00332295,86098.0,86088.0,0.00017429]
[1766006034508,0.3608,86093.0,86088.0,0.00017429]
[1766006038719,0.3608,86093.0,86077.0,0.3608]
[1766006038917,0.3608,86093.0,86077.0,0.3724211]
[1766006040217,0.3608,86093.0,86079.0,0.0116209]
[1766006040812,0.3608,86093.0,86077.0,0.3724212]
[1766006041022,0.3608,86093.0,86077.0,0.3618]
[1766006041210,0.3608,86093.0,86080.0,0.0116207]
[1766006041410,0.0116192,86092.0,86077.0,0.3608]
[1766006041606,0.3608,86082.0,86064.0,0.72736]
[1766006041811,0.3608,86082.0,86070.0,0.0116221]
[1766006043020,0.3608,86082.0,86072.0,0.0116218]
[1766006043817,0.3608,86090.0,86075.0,0.0116214]
[1766006045219,0.3608,86090.0,86073.0,0.3608]
[1766006046142,0.3608,86090.0,86073.0,0.3724216]
[1766006046343,0.3608,86090.0,86073.0,0.3608]
[1766006047237,0.3608,86090.0,86074.0,0.0116215]
[1766006047538,0.3608,86090.0,86073.0,0.3608]
[1766006047738,0.3608,86090.0,86067.0,0.00017429]
[1766006047739,0.3608,86081.0,86067.0,0.00017429]
[1766006048237,0.3608,86081.0,86070.0,0.011622]
[1766006048635,0.3608,86081.0,86067.0,0.01179679]
[1766006049035,0.3608,86081.0,86067.0,0.00017429]
[1766006049838,0.3608,86081.0,86067.0,0.00117429]
[1766006050249,0.3608,86081.0,86068.0,0.3608]
[1766006053650,0.3724206,86081.0,86068.0,0.3608]
[1766006053956,0.3608,86070.0,86056.0,0.0116239]
[1766006054248,0.3608,86062.0,86053.0,0.02890947]
[1766006054752,0.3608,86062.0,86050.0,0.18426304]
[1766006055056,0.3608,86062.0,86047.0,0.72749429]
[1766006055245,0.3608,86062.0,86052.0,0.0116245]
[1766006055551,0.3608,86062.0,86056.0,0.002]
[1766006056152,0.3608,86062.0,86052.0,0.0116245]
[1766006058049,0.3608,86062.0,86051.0,0.0116246]
[1766006060153,0.3608,86062.0,86047.0,0.72749429]
[1766006060448,0.3608,86062.0,86037.0,0.3608]
[1766006060449,0.3608,86053.0,86037.0,0.3608]
[1766006062142,0.3608,86053.0,86037.0,0.3618]
[1766006062350,0.3608,86053.0,86040.0,0.0116261]
[1766006063450,0.3608,86053.0,86037.0,0.001]
[1766006063451,0.3608,86041.0,86037.0,0.001]
[1766006064250,0.00017429,86048.0,86037.0,0.3618]
[1766006064445,0.00017429,86048.0,86045.0,0.3608]
[1766006066144,0.00017429,86048.0,86038.0,0.3608]
[1766006066857,0.00017429,86048.0,86039.0,0.0116263]
[1766006067360,0.00017429,86048.0,86041.0,0.011626]
[1766006068057,0.00017429,86048.0,86038.0,0.3724263]
[1766006068256,0.00017429,86048.0,86038.0,0.3608]
[1766006069253,0.00017429,86048.0,86040.0,0.011626]
[1766006071154,0.00017429,86048.0,86038.0,0.3608]
[1766006071857,0.00017429,86048.0,86038.0,0.3724263]
[1766006073465,0.00017429,86048.0,86040.0,0.0116261]
[1766006078166,0.00017429,86048.0,86040.0,0.0126261]
[1766006081564,0.00017429,86048.0,86040.0,0.001]